[Event "13 Open de Quenza"]
[Site "Quenza, France"]
[Date "2024.07.07"]
[Round "9.12"]
[White "Stoenescu, Radu"]
[Black "Mullon, Jean-Baptiste"]
[Result "1-0"]
[TimeControl "5min+3s/move"]
[WhiteElo "2009"]
[BlackElo "2315"]

1. e4 {[%clk 00:05:03]} c5 {[%clk 00:05:03]} {[%emt 00:00:01]} 2. Nf3 {[%clk
00:05:03]} e6 {[%clk 00:05:03]} {[%emt 00:00:04]} 3. d4 {[%clk 00:05:03]}
{[%emt 00:00:01]} cxd4 {[%clk 00:05:03]} {[%emt 00:00:02]} 4. Nxd4 {[%clk
00:05:03]} {[%emt 00:00:01]} a6 {[%clk 00:05:03]} {[%emt 00:00:01]} 5. Nc3
{[%clk 00:05:03]} {[%emt 00:00:02]} b5 {[%clk 00:05:03]} {[%emt 00:00:01]} 6.
a3 {[%clk 00:05:03]} {[%emt 00:00:01]} Bb7 {[%clk 00:05:03]} {[%emt 00:00:02]}
7. g3 {[%clk 00:05:03]} Qc7 {[%clk 00:04:48]} {[%emt 00:00:19]} 8. Bg2 {[%clk
00:05:02]} {[%emt 00:00:04]} Nf6 {[%clk 00:04:44]} {[%emt 00:00:07]} 9. O-O
{[%clk 00:05:00]} {[%emt 00:00:06]} d6 {[%clk 00:04:40]} {[%emt 00:00:07]} 10.
f4 {[%clk 00:04:53]} {[%emt 00:00:09]} Nc6 {[%clk 00:04:38]} {[%emt 00:00:06]}
11. Nb3 {[%clk 00:04:53]} {[%emt 00:00:02]} Be7 {[%clk 00:04:29]} {[%emt
00:00:12]} 12. Be3 {[%clk 00:04:44]} {[%emt 00:00:09]} Rc8 {[%clk 00:04:21]}
{[%emt 00:00:12]} 13. g4 {[%clk 00:04:36]} {[%emt 00:00:14]} Nd7 {[%clk
00:04:14]} {[%emt 00:00:09]} 14. Qf3 {[%clk 00:04:14]} {[%emt 00:00:24]} Nb6
{[%clk 00:04:13]} {[%emt 00:00:04]} 15. Rad1 {[%clk 00:04:14]} {[%emt
00:00:01]} Nc4 {[%clk 00:04:03]} {[%emt 00:00:14]} 16. Bc1 {[%clk 00:04:14]}
Rb8 {[%clk 00:02:54]} {[%emt 00:01:12]} 17. g5 {[%clk 00:03:29]} {[%emt
00:00:48]} h6 {[%clk 00:02:35]} {[%emt 00:00:22]} 18. Qh5 {[%clk 00:03:16]}
{[%emt 00:00:16]} g6 {[%clk 00:02:27]} {[%emt 00:00:11]} 19. Qh3 {[%clk
00:02:58]} {[%emt 00:00:20]} Bc8 {[%clk 00:02:08]} {[%emt 00:00:23]} 20. f5
{[%clk 00:02:42]} {[%emt 00:00:19]} N6e5 {[%clk 00:02:04]} {[%emt 00:00:07]} 21.
Nd4 {[%clk 00:02:19]} {[%emt 00:00:26]} Qd7 {[%clk 00:01:41]} {[%emt 00:00:26]}
22. fxe6 {[%clk 00:01:52]} {[%emt 00:00:29]} fxe6 {[%clk 00:01:41]} {[%emt
00:00:02]} 23. gxh6 {[%clk 00:01:52]} {[%emt 00:00:01]} g5 {[%clk 00:00:53]}
{[%emt 00:00:51]} 24. Qh5+ {[%clk 00:01:31]} {[%emt 00:00:25]} Kd8 {[%clk
00:00:53]} 25. b3 {[%clk 00:01:31]} {[%emt 00:00:02]} Nb6 {[%clk 00:00:50]}
{[%emt 00:00:05]} 26. Bxg5 {[%clk 00:01:31]} {[%emt 00:00:02]} Kc7 {[%clk
00:00:41]} {[%emt 00:00:12]} 27. Bxe7 {[%clk 00:01:14]} {[%emt 00:00:20]} Qxe7
{[%clk 00:00:41]} {[%emt 00:00:01]} 28. Ndxb5+ {[%clk 00:01:14]} axb5 {[%clk
00:00:18]} {[%emt 00:00:26]} 29. Nxb5+ {[%clk 00:01:14]} {[%emt 00:00:01]} Kc6
{[%clk 00:00:18]} 30. Rxd6+ {[%clk 00:00:59]} {[%emt 00:00:18]} Kxb5 {[%clk
00:00:18]} {[%emt 00:00:01]} 31. Qxe5+ {[%clk 00:00:59]} {[%emt 00:00:01]} Ka6
{[%clk 00:00:18]} 32. Rxb6+ {[%clk 00:00:46]} {[%emt 00:00:17]} Rxb6 {[%clk
00:00:18]} 33. Qxh8 {[%clk 00:00:46]} {[%emt 00:00:01]} Bb7 {[%clk 00:00:08]}
{[%emt 00:00:13]} 34. Qg7 {[%clk 00:00:37]} {[%emt 00:00:11]} Qc5+ {[%clk
00:00:07]} {[%emt 00:00:04]} 35. Kh1 {[%clk 00:00:37]} {[%emt 00:00:02]} 1-0